fUSD/lending_fUSD_20250217
["ID","MTS","AMOUNT","RATE_DAILY","PERIOD"]
[353325445,1739765458880,-3023.3919512,0.00013853,2]
[353325446,1739765458890,-2186.6579388,0.00013853,2]
[353325447,1739765458900,-1655.4429885,0.00013853,2]
[353325448,1739765458910,-1197.2935073,0.00013853,2]
[353325449,1739765458919,-300.0,0.00013862,2]
[353325450,1739765458928,-300.0,0.00013862,2]
[353325451,1739765458938,-254.677972,0.00013862,2]
[353325452,1739765458947,-151.287984,0.00013862,2]
[353325453,1739765458956,-500.0,0.00013862,2]
[353325454,1739765458966,-500.0,0.00013862,2]
[353325455,1739765458976,-316.71846247,0.00013862,3]
[353325456,1739765458985,-27358.68611518,0.00013862,3]
[353325457,1739765459120,-500.0,0.00013698,2]
[353325458,1739765459130,-360.004999,0.00013862,3]
[353325459,1739765459146,-644.73,0.00013862,3]
[353325460,1739765459157,-958.930518,0.00013862,3]
[353325461,1739765459536,-500.0,0.00013698,2]
[353325462,1739765459545,-626.14,0.00013698,2]
[353325463,1739765459555,-7414.08194455,0.00013862,3]
[353325464,1739765459566,-287.54806406,0.00013862,3]
[353325465,1739765459586,-500.0,0.00013698,2]
[353325466,1739765459595,-11071.46617176,0.00013862,3]
[353325467,1739765459607,-2000.0,0.00013862,3]
[353325468,1739765459618,-36605.41474314,0.00013862,3]
[353325469,1739765459629,-931.84999995,0.00013862,3]
[353325470,1739765523706,314.0,0.0002,120]
[353325471,1739765780161,500.0,0.0002,120]
[353325474,1739766037206,436.4077,8.699e-05,2]
[353325475,1739766136646,222.4663,8.699e-05,2]
[353325478,1739766397961,500.0,0.0002,120]
[353325479,1739766398246,500.0,0.0002,120]
[353325480,1739766398484,500.0,0.0002,120]
[353325573,1739766631945,-150.0,8.835e-05,2]
[353325575,1739766631955,-6349.0,8.836e-05,2]
[353325576,1739766631964,-16120.8249,8.836e-05,2]
[353325578,1739766631973,-3221.842,8.836e-05,2]
[353325580,1739766631983,-265.3343,8.836e-05,2]
[353325581,1739766631993,-169.91761602,8.836e-05,2]
[353325582,1739766632004,-332.00818398,8.836e-05,2]
[353325583,1739766632014,-864.72532184,8.836e-05,2]
[353325584,1739766632023,-1668.21794309,8.836e-05,2]
[353325585,1739766632034,-308.13345431,8.836e-05,2]
[353325586,1739766632060,-970.77143134,8.836e-05,2]
[353325587,1739766632260,-3976.74888256,8.836e-05,2]
[353325588,1739766632279,-1901.5481887,8.836e-05,2]
[353325589,1739766632289,-38420.2811,8.973e-05,2]
[353325590,1739766632300,-4755.89456415,9e-05,2]
[353325591,1739766632310,-614.26833776,9.999e-05,2]
[353325592,1739766632320,-550.0,0.0001,2]
[353325593,1739766632331,-311479.87831524,0.0001,2]
[353325594,1739766632355,-996.59053784,0.0001,2]
[353325595,1739766632368,-3207.30363253,0.0001,2]
[353325596,1739766632379,-5402.91999996,0.0001,2]
[353325597,1739766632391,-1766.6000005,0.0001,2]
[353325598,1739766632410,-5374.72257909,0.0001,2]
[353325600,1739766632424,-5404.32011227,0.0001,2]
[353325601,1739766632436,-1081.76117007,0.0001,2]
[353325602,1739766632448,-950.50976812,0.0001,2]
[353325603,1739766632460,-269.769479,0.0001,2]
[353325604,1739766632484,-423.33046564,0.0001,2]
[353325605,1739766632496,-891.00211688,0.0001,2]
[353325616,1739766637790,-1756.33430446,0.0001,2]
[353325617,1739766637802,-1040.67,0.0001,2]
[353325618,1739766637821,-712.33,0.0001,2]
[353325619,1739766637832,-625.25,0.0001,2]
[353325620,1739766637990,-9440.0,0.0001,2]
[353325621,1739766638002,-438.7446528,0.0001,2]
[353325622,1739766638013,-2771.31114562,0.0001,2]
[353325623,1739766638025,-6646.45802318,0.0001,2]
[353325624,1739766638036,-2437.59954358,0.0001,2]
[353325625,1739766638109,-12000.00000015,0.0001,2]
[353325626,1739766638120,-47054.49999999,0.0001,2]
[353325628,1739766638138,-417.93362683,0.0001,2]
[353325629,1739766638149,-487.64485839,0.0001,2]
[353325630,1739766638163,-45265.24293301,0.0001,2]
[353325631,1739766638173,-8626.93450384,0.0001,2]
[353325632,1739766638184,-455.625,0.0001,2]
[353325633,1739766638199,-1291.58540752,0.0001,2]
[353325634,1739766638210,-544.82978965,0.0001,2]
[353325635,1739766638221,-1838.98,0.0001,2]
[353325636,1739766638233,-6066.0,0.0001,2]
[353325637,1739766638244,-7194.21140675,0.0001,2]
[353325639,1739766638255,-9105.39999999,0.0001,2]
[353325641,1739766638274,-2219.533677,0.0001,2]
[353325642,1739766638291,-1109.58021,0.0001,2]
[353325643,1739766638302,-252.90102083,0.0001,2]
[353325644,1739766638314,-20000.0,0.0001,2]
[353325645,1739766638326,-925.0,0.0001,2]
[353325651,1739766639909,-1597.25198401,0.0001,2]
[353325652,1739766639920,-99773.64437088,0.0001,2]
[353325653,1739766639948,-19232.898044,0.0001,2]
[353325654,1739766639959,-1033.42491592,0.0001,2]
[353325655,1739766639993,-620.02291574,0.0001,2]
[353325656,1739766640005,-654.839996,0.0001,2]
[353325657,1739766640016,-10310.28202644,0.0001,2]
[353325658,1739766640027,-955.0,0.0001,2]
[353325659,1739766640039,-1125.49242135,0.0001,2]
[353325660,1739766640051,-350.32372873,0.0001,2]
[353325661,1739766640081,-426.11053264,0.0001,2]
[353325662,1739766640092,-462.00995226,0.0001,2]
[353325664,1739766640103,-3118.84574079,0.0001,2]
[353325666,1739766640113,-10631.13680518,0.0001,2]
[353325668,1739766640122,-157.98,0.00010137,2]
[353325670,1739766640131,-150.21,0.000106,2]
[353325672,1739766640141,-882.49,0.00010752,2]
[353325673,1739766640150,-10399.7057312,0.000108,2]
[353325674,1739766640163,-783.34611875,0.000108,2]
[353325675,1739766640174,-938.99999995,0.000108,2]
[353325676,1739766640202,-6492.98264759,0.000108,2]
[353325677,1739766640235,-2429.4141106,0.000108,2]
[353325678,1739766640246,-29063.21400303,0.000108,2]
[353325679,1739766640257,-184.3340683,0.000109,2]
[353325680,1739766640267,-17207.53651263,0.00011099,2]
[353325681,1739766640276,-17207.53651261,0.00011099,2]
[353325682,1739766640291,-17207.53651261,0.00011099,2]
[353325683,1739766640306,-11067.68042666,0.00011099,2]
[353325685,1739766640317,-11067.68042658,0.00011099,2]
[353325687,1739766640328,-11067.68042658,0.00011099,2]
[353325689,1739766640338,-17207.53651261,0.00011215,2]
[353325691,1739766640347,-11067.68042658,0.00011267,2]
[353325692,1739766640356,-184.3340683,0.00011352,2]
[353325693,1739766640367,-167.34,0.00011535,2]
[353325694,1739766640376,-17207.53651261,0.00011653,2]
[353325695,1739766640386,-11067.68042658,0.0001171,2]
[353325696,1739766640395,-610.5,0.00011764,2]
[353325697,1739766640405,-1520.563,0.00011843,2]
[353325698,1739766640415,-600.0,0.00012,2]
[353325699,1739766640424,-184.3340683,0.0001206,2]
[353325701,1739766640434,-17207.53651261,0.00012092,2]
[353325702,1739766640444,-11067.68042658,0.00012154,2]
[353325703,1739766640453,-23900.0,0.00012241,2]
[353325704,1739766640463,-351.96,0.00012349,2]
[353325705,1739766640473,-738.49,0.000124,2]
[353325706,1739766640483,-1000.0,0.00012409,2]
[353325707,1739766640492,-1265.83,0.00012514,2]
[353325708,1739766640502,-251.44,0.00012597,2]
[353325709,1739766640511,-11067.68042658,0.00012597,2]
[353325710,1739766640521,-150.0,0.000126,2]
[353325711,1739766640531,-439.11,0.00012607,2]
[353325712,1739766640540,-150.0,0.00012607,2]
[353325713,1739766640549,-250.0,0.00012731,2]
[353325714,1739766640559,-150.0,0.0001274,2]
[353325715,1739766640569,-150.0,0.0001274,2]
[353325716,1739766640578,-184.3340683,0.00012767,2]
[353325717,1739766640587,-180.3,0.00012797,2]
[353325718,1739766640596,-155.0,0.00012797,2]
[353325719,1739766640606,-216.96,0.00012878,2]
[353325720,1739766640615,-150.0,0.00012878,2]
[353325721,1739766640624,-150.0,0.00012878,2]
[353325722,1739766640633,-150.99,0.00012893,2]
[353325723,1739766640643,-150.99,0.00012893,2]
[353325724,1739766640652,-150.0,0.00012946,2]
[353325725,1739766640661,-1467.54,0.00012949,2]
[353325726,1739766640670,-882.49,0.00013016,2]
[353325727,1739766640679,-11067.68042658,0.0001304,2]
[353325728,1739766640688,-150.0,0.00013074,2]
[353325729,1739766640697,-1786.0,0.00013074,2]
[353325730,1739766640707,-431.71,0.00013074,2]
[353325731,1739766640716,-2837.287,0.00013074,2]
[353325732,1739766640725,-1031.486,0.00013074,2]
[353325733,1739766640735,-539.0,0.00013074,2]
[353325734,1739766640744,-4027.0,0.00013074,2]
[353325735,1739766640753,-782.471,0.00013074,2]
[353325736,1739766640762,-150.0,0.00013074,2]
[353325737,1739766640771,-1274.0,0.00013074,2]
[353325738,1739766640781,-3917.0,0.00013074,2]
[353325739,1739766640791,-151.0,0.00013074,2]
[353325740,1739766640800,-2026.0,0.00013074,2]
[353325741,1739766640810,-150.0,0.00013078,2]
[353325742,1739766640819,-150.0,0.00013078,2]
[353325743,1739766640828,-300.0,0.00013078,2]
[353325744,1739766640837,-150.0,0.00013178,2]
[353325745,1739766640846,-439.06,0.00013429,2]
[353325746,1739766640855,-439.06,0.00013429,2]
[353325747,1739766640864,-184.3340683,0.00013475,2]
[353325748,1739766640874,-11067.68042658,0.00013484,2]
[353325749,1739766640883,-150.0,0.00013562,2]
[353325750,1739766640892,-150.0,0.00013562,2]
[353325751,1739766640901,-150.0,0.00013562,2]
[353325752,1739766640911,-2121.6604553,0.00013584,2]
[353325753,1739766640920,-165.06389202,0.00013598,2]
[353325754,1739766640931,-976.31960309,0.00013663,2]
[353325755,1739766640941,-504.89,0.0001368,2]
[353325756,1739766640951,-675.9122238,0.0001368,2]
[353325757,1739766640960,-200.70195133,0.00013688,2]
[353325758,1739766640970,-687.92043846,0.00013692,2]
[353325759,1739766640979,-168.86744416,0.00013697,2]
[353325760,1739766640989,-510.96434589,0.00013698,2]
[353325761,1739766640998,-156.366828,0.00013698,2]
[353325762,1739766641008,-504.69794348,0.00013698,2]
[353325763,1739766641017,-501.7302938,0.00013698,2]
[353325764,1739766641027,-501.39754957,0.00013698,2]
[353325765,1739766641036,-500.0,0.00013698,2]
[353325766,1739766641046,-501.31687234,0.00013698,2]
[353325767,1739766641055,-286.534933,0.00013698,2]
[353325768,1739766641064,-500.0,0.00013698,2]
[353325769,1739766641074,-501.7931714,0.00013698,2]
[353325770,1739766641083,-336.22071,0.00013698,2]
[353325771,1739766641092,-220.89498196,0.00013698,2]
[353325772,1739766641101,-500.0,0.00013698,2]
[353325773,1739766641110,-500.82549256,0.00013698,2]
[353325774,1739766641120,-163.680665,0.00013698,2]
[353325775,1739766641129,-500.0,0.00013698,2]
[353325776,1739766641139,-500.68579503,0.00013698,2]
[353325777,1739766641148,-530.94541895,0.00013698,2]
[353325778,1739766641158,-501.53326184,0.00013698,2]
[353325779,1739766641168,-500.0,0.00013698,2]
[353325780,1739766641178,-501.31199593,0.00013698,2]
[353325781,1739766641187,-503.36563939,0.00013698,2]
[353325782,1739766641196,-500.0,0.00013698,2]
[353325783,1739766641205,-501.05333239,0.00013698,2]
[353325784,1739766641215,-500.0,0.00013698,2]
[353325785,1739766641223,-430.76723658,0.00013698,2]
[353325786,1739766641234,-504.36948586,0.00013698,2]
[353325787,1739766641243,-500.0,0.00013698,2]
[353325788,1739766641252,-500.0,0.00013698,2]
[353325789,1739766641262,-500.0,0.00013698,2]
[353325790,1739766641271,-500.0,0.00013698,2]
[353325791,1739766641282,-500.0,0.00013698,2]
[353325792,1739766641292,-500.0,0.00013698,2]
[353325793,1739766641302,-500.0,0.00013698,2]
[353325794,1739766641312,-500.0,0.00013698,2]
[353325795,1739766641323,-500.0,0.00013698,2]
[353325796,1739766641333,-501.43157411,0.00013698,2]
[353325797,1739766641342,-500.0,0.00013698,2]
[353325798,1739766641351,-500.0,0.00013698,2]
[353325799,1739766641362,-500.0,0.00013698,2]
[353325800,1739766641372,-500.0,0.00013698,2]
[353325801,1739766641382,-500.0,0.00013698,2]
[353325802,1739766641392,-500.0,0.00013698,2]
[353325803,1739766641401,-500.0,0.00013698,2]
[353325804,1739766641412,-500.0,0.00013698,2]
[353325805,1739766641421,-500.0,0.00013698,2]
[353325806,1739766641431,-500.0,0.00013698,2]
[353325807,1739766641440,-500.0,0.00013698,2]
[353325808,1739766641450,-500.0,0.00013698,2]
[353325809,1739766641459,-500.0,0.00013698,2]
[353325810,1739766641468,-503.07452328,0.00013698,2]
[353325811,1739766641477,-500.0,0.00013698,2]
[353325812,1739766641487,-500.0,0.00013698,2]
[353325813,1739766641496,-500.0,0.00013698,2]
[353325814,1739766641505,-500.0,0.00013698,2]
[353325815,1739766641514,-500.0,0.00013698,2]
[353325816,1739766641524,-500.0,0.00013698,2]
[353325817,1739766641533,-500.0,0.00013698,2]
[353325818,1739766641542,-500.0,0.00013698,2]
[353325819,1739766641552,-500.0,0.00013698,2]
[353325820,1739766641562,-500.0,0.00013698,2]
[353325821,1739766641572,-500.0,0.00013698,2]
[353325822,1739766641582,-500.0,0.00013698,2]
[353325823,1739766641592,-500.86854493,0.00013698,2]
[353325824,1739766641601,-500.0,0.00013698,2]
[353325825,1739766641611,-500.0,0.00013698,2]
[353325826,1739766641620,-500.0,0.00013698,2]
[353325827,1739766641629,-500.0,0.00013698,2]
[353325828,1739766641638,-500.0,0.00013698,2]
[353325829,1739766641648,-272.74663412,0.00013698,2]
[353325830,1739766641657,-500.0,0.00013698,2]
[353325831,1739766641666,-500.0,0.00013698,2]
[353325832,1739766641677,-500.0,0.00013698,2]
[353325833,1739766641688,-501.52407532,0.00013698,2]
[353325834,1739766641698,-531.80631726,0.00013698,2]
[353325835,1739766641709,-500.0,0.00013698,2]
[353325836,1739766641719,-500.0,0.00013698,2]
[353325837,1739766641728,-514.33224161,0.00013698,2]
[353325838,1739766641738,-500.0,0.00013698,2]
[353325839,1739766641747,-500.0,0.00013698,2]
[353325840,1739766641756,-500.0,0.00013698,2]
[353325841,1739766641766,-500.0,0.00013698,2]
[353325842,1739766641776,-500.0,0.00013698,2]
[353325843,1739766641785,-156.56267,0.00013698,2]
[353325844,1739766641795,-500.0,0.00013698,2]
[353325845,1739766641804,-500.0,0.00013698,2]
[353325846,1739766641814,-500.0,0.00013698,2]
[353325847,1739766641823,-500.0,0.00013698,2]
[353325848,1739766641833,-500.0,0.00013698,2]
[353325849,1739766641842,-500.0,0.00013698,2]
[353325850,1739766641852,-500.0,0.00013698,2]
[353325851,1739766641862,-500.0,0.00013698,2]
[353325852,1739766641872,-500.0,0.00013698,2]
[353325853,1739766641882,-500.0,0.00013698,2]
[353325854,1739766641892,-500.0,0.00013698,2]
[353325855,1739766641901,-179.917488,0.00013698,2]
[353325856,1739766641911,-500.0,0.00013698,2]
[353325857,1739766641921,-500.0,0.00013698,2]
[353325858,1739766641931,-502.48735559,0.00013698,2]
[353325859,1739766641941,-500.61778684,0.00013698,2]
[353325860,1739766641952,-500.0,0.00013698,2]
[353325861,1739766641962,-500.0,0.00013698,2]
[353325862,1739766641971,-500.0,0.00013698,2]
[353325863,1739766642119,-518.51605511,0.00013698,2]
[353325864,1739766642129,-501.61704198,0.00013698,2]
[353325865,1739766642139,-514.57302943,0.00013698,2]
[353325866,1739766642148,-500.0,0.00013698,2]
[353325867,1739766642158,-500.0,0.00013698,2]
[353325868,1739766642167,-500.0,0.00013698,2]
[353325869,1739766642176,-500.0,0.00013698,2]
[353325870,1739766642185,-500.0,0.00013698,2]
[353325871,1739766642195,-500.0,0.00013698,2]
[353325872,1739766642204,-522.38195133,0.00013698,2]
[353325873,1739766642213,-501.94613126,0.00013698,2]
[353325874,1739766642223,-500.0,0.00013698,2]
[353325875,1739766642232,-500.0,0.00013698,2]
[353325876,1739766642241,-500.0,0.00013698,2]
[353325877,1739766642251,-500.0,0.00013698,2]
[353325878,1739766642260,-508.08183406,0.00013698,2]
[353325879,1739766642269,-500.0,0.00013698,2]
[353325880,1739766642278,-502.05463389,0.00013698,2]
[353325881,1739766642288,-500.0,0.00013698,2]
[353325882,1739766642302,-501.62280403,0.00013698,2]
[353325883,1739766642311,-500.0,0.00013698,2]
[353325884,1739766642320,-500.0,0.00013698,2]
[353325885,1739766642331,-500.0,0.00013698,2]
[353325886,1739766642340,-504.23424002,0.00013698,2]
[353325887,1739766642349,-516.90188554,0.00013698,2]
[353325888,1739766642359,-500.0,0.00013698,2]
[353325889,1739766642370,-500.0,0.00013698,2]
[353325890,1739766642379,-500.0,0.00013698,2]
[353325891,1739766642389,-500.0,0.00013698,2]
[353325892,1739766642398,-518.62199192,0.00013698,2]
[353325893,1739766642408,-500.0,0.00013698,2]
[353325894,1739766642417,-500.74814861,0.00013698,2]
[353325895,1739766642427,-513.36892056,0.00013698,2]
[353325896,1739766642436,-500.0,0.00013698,2]
[353325897,1739766642445,-505.69391583,0.00013698,2]
[353325898,1739766642455,-500.0,0.00013698,2]
[353325899,1739766642464,-500.0,0.00013698,2]
[353325900,1739766642474,-198.35881073,0.00013698,2]
[353325901,1739766642483,-509.76452653,0.00013698,2]
[353325902,1739766642493,-504.30766273,0.00013698,2]
[353325903,1739766642502,-502.37147875,0.00013698,2]
[353325904,1739766642511,-500.0,0.00013698,2]
[353325905,1739766642521,-500.0,0.00013698,2]
[353325906,1739766642530,-500.0,0.00013698,2]
[353325907,1739766642539,-500.0,0.00013698,2]
[353325908,1739766642549,-500.0,0.00013698,2]
[353325909,1739766642558,-500.0,0.00013698,2]
[353325910,1739766642567,-500.0,0.00013698,2]
[353325911,1739766642576,-500.0,0.00013698,2]
[353325912,1739766642585,-500.0,0.00013698,2]
[353325913,1739766642594,-500.0,0.00013698,2]
[353325914,1739766642603,-500.0,0.00013698,2]
[353325915,1739766642612,-515.21341065,0.00013698,2]
[353325916,1739766642621,-503.37157272,0.00013698,2]
[353325917,1739766642630,-500.0,0.00013698,2]
[353325918,1739766642639,-500.0,0.00013698,2]
[353325919,1739766642648,-500.0,0.00013698,2]
[353325920,1739766642657,-500.0,0.00013698,2]
[353325921,1739766642667,-514.71652546,0.00013698,2]
[353325923,1739766642676,-500.0,0.00013698,2]
[353325925,1739766642686,-500.0,0.00013698,2]
[353325926,1739766642696,-500.0,0.00013698,2]
[353325927,1739766642705,-500.0,0.00013698,2]
[353325929,1739766642715,-500.0,0.00013698,2]
[353325931,1739766642724,-500.0,0.00013698,2]
[353325933,1739766642733,-500.0,0.00013698,2]
[353325934,1739766642742,-441.72684878,0.00013698,2]
[353325937,1739766642752,-244.85799184,0.00013698,2]
[353325940,1739766642761,-500.0,0.00013698,2]
[353325943,1739766642770,-500.0,0.00013698,2]
[353325945,1739766642779,-500.0,0.00013698,2]
[353325948,1739766642788,-500.0,0.00013698,2]
[353325950,1739766642799,-500.0,0.00013698,2]
[353325952,1739766642808,-500.0,0.00013698,2]
[353325954,1739766642817,-500.0,0.00013698,2]
[353325955,1739766642826,-500.0,0.00013698,2]
[353325956,1739766642835,-500.0,0.00013698,2]
[353325958,1739766642844,-500.0,0.00013698,2]
[353325960,1739766642854,-500.0,0.00013698,2]
[353325962,1739766642863,-500.0,0.00013698,2]
[353325964,1739766642872,-500.0,0.00013698,2]
[353325966,1739766642881,-156.562665,0.00013698,2]
[353325968,1739766642890,-500.0,0.00013698,2]
[353325971,1739766642900,-500.0,0.00013698,2]
[353325974,1739766642910,-500.0,0.00013698,2]
[353325977,1739766642919,-500.0,0.00013698,2]
[353325980,1739766642928,-504.39946754,0.00013698,2]
[353325983,1739766642937,-500.0,0.00013698,2]
[353325987,1739766642946,-500.0,0.00013698,2]
[353325989,1739766642955,-500.0,0.00013698,2]
[353325992,1739766642964,-500.0,0.00013698,2]
[353325995,1739766642973,-500.0,0.00013698,2]
[353325998,1739766642982,-508.34578323,0.00013698,2]
[353326001,1739766642991,-500.0,0.00013698,2]
[353326003,1739766643001,-500.0,0.00013698,2]
[353326005,1739766643010,-179.917484,0.00013698,2]
[353326007,1739766643020,-500.0,0.00013698,2]
[353326009,1739766643029,-500.0,0.00013698,2]
[353326011,1739766643038,-500.0,0.00013698,2]
[353326013,1739766643047,-500.0,0.00013698,2]
[353326015,1739766643056,-503.28939529,0.00013698,2]
[353326017,1739766643065,-500.0,0.00013698,2]
[353326019,1739766643074,-500.0,0.00013698,2]
[353326021,1739766643084,-500.0,0.00013698,2]
[353326023,1739766643094,-500.0,0.00013698,2]
[353326025,1739766643104,-500.0,0.00013698,2]
[353326027,1739766643113,-500.0,0.00013698,2]
[353326029,1739766643122,-500.0,0.00013698,2]
[353326031,1739766643131,-500.0,0.00013698,2]
[353326033,1739766643141,-586.20235076,0.00013698,2]
[353326035,1739766643149,-500.0,0.00013698,2]
[353326037,1739766643159,-428.88846741,0.00013698,2]
[353326039,1739766643168,-511.38583577,0.00013698,2]
[353326041,1739766643177,-505.6768485,0.00013698,2]
[353326043,1739766643186,-500.0,0.00013698,2]
[353326045,1739766643195,-500.0,0.00013698,2]
[353326047,1739766643205,-500.0,0.00013698,2]
[353326049,1739766643214,-500.0,0.00013698,2]
[353326051,1739766643224,-500.0,0.00013698,2]
[353326053,1739766643233,-500.0,0.00013698,2]
[353326055,1739766643242,-500.0,0.00013698,2]
[353326058,1739766643251,-500.0,0.00013698,2]
[353326060,1739766643260,-500.0,0.00013698,2]
[353326062,1739766643269,-500.0,0.00013698,2]
[353326064,1739766643279,-500.0,0.00013698,2]
[353326066,1739766643291,-500.0,0.00013698,2]
[353326067,1739766643299,-500.0,0.00013698,2]
[353326069,1739766643308,-500.0,0.00013698,2]
[353326071,1739766643318,-500.0,0.00013698,2]
[353326072,1739766643327,-505.71094077,0.00013698,2]
[353326074,1739766643337,-503.07317203,0.00013698,2]
[353326076,1739766643346,-500.0,0.00013698,2]
[353326078,1739766643355,-500.0,0.00013698,2]
[353326080,1739766643366,-500.0,0.00013698,2]
[353326082,1739766643376,-500.0,0.00013698,2]
[353326083,1739766643385,-500.0,0.00013698,2]
[353326085,1739766643394,-500.0,0.00013698,2]
[353326087,1739766643404,-565.56298621,0.00013698,2]
[353326089,1739766643415,-500.0,0.00013698,2]
[353326091,1739766643424,-500.0,0.00013698,2]
[353326094,1739766643434,-500.0,0.00013698,2]
[353326096,1739766643443,-500.0,0.00013698,2]
[353326098,1739766643453,-503.405596,0.00013698,2]
[353326099,1739766643462,-500.0,0.00013698,2]
[353326101,1739766643471,-500.0,0.00013698,2]
[353326103,1739766643481,-500.0,0.00013698,2]
[353326105,1739766643490,-504.23023985,0.00013698,2]
[353326107,1739766643499,-500.0,0.00013698,2]
[353326108,1739766643509,-500.0,0.00013698,2]
[353326110,1739766643518,-500.0,0.00013698,2]
[353326112,1739766643527,-617.52093266,0.00013698,2]
[353326114,1739766643536,-500.0,0.00013698,2]
[353326116,1739766643546,-500.0,0.00013698,2]
[353326117,1739766643555,-500.0,0.00013698,2]
[353326120,1739766643565,-502.01937361,0.00013698,2]
[353326122,1739766643574,-512.53337663,0.00013698,2]
[353326124,1739766643583,-500.0,0.00013698,2]
[353326126,1739766643593,-309.4655342,0.00013698,2]
[353326128,1739766643602,-500.0,0.00013698,2]
[353326129,1739766643611,-502.81919726,0.00013698,2]
[353326131,1739766643620,-518.49,0.00013698,2]
[353326133,1739766643630,-500.0,0.00013698,2]
[353326135,1739766643638,-503.05375181,0.00013698,2]
[353326137,1739766643648,-504.76178213,0.00013698,2]
[353326138,1739766643657,-500.0,0.00013698,2]
[353326140,1739766643666,-508.32390688,0.00013698,2]
[353326142,1739766643675,-500.0,0.00013698,2]
[353326144,1739766643685,-500.0,0.00013698,2]
[353326146,1739766643694,-500.0,0.00013698,2]
[353326148,1739766643703,-500.0,0.00013698,2]
[353326149,1739766643713,-500.0,0.00013698,2]
[353326150,1739766643722,-500.0,0.00013698,2]
[353326152,1739766643731,-500.0,0.00013698,2]
[353326154,1739766643741,-500.62433605,0.00013698,2]
[353326156,1739766643750,-500.0,0.00013698,2]
[353326158,1739766643759,-525.44774917,0.00013698,2]
[353326160,1739766643768,-500.0,0.00013698,2]
[353326162,1739766643777,-500.0,0.00013698,2]
[353326164,1739766643786,-500.0,0.00013698,2]
[353326166,1739766643796,-500.0,0.00013698,2]
[353326167,1739766643805,-507.49138087,0.00013698,2]
[353326169,1739766643815,-518.17577422,0.00013698,2]
[353326171,1739766643824,-501.28040181,0.00013698,2]
[353326173,1739766643833,-500.0,0.00013698,2]
[353326175,1739766643842,-500.0,0.00013698,2]
[353326177,1739766643851,-505.02090325,0.00013698,2]
[353326179,1739766643862,-500.0,0.00013698,2]
[353326181,1739766643871,-500.0,0.00013698,2]
[353326182,1739766643881,-500.0,0.00013698,2]
[353326184,1739766643890,-500.0,0.00013698,2]
[353326186,1739766643899,-500.0,0.00013698,2]
[353326188,1739766643909,-500.0,0.00013698,2]
[353326190,1739766643919,-500.0,0.00013698,2]
[353326192,1739766643928,-500.0,0.00013698,2]
[353326194,1739766643937,-506.90626798,0.00013698,2]
[353326195,1739766643946,-500.0,0.00013698,2]
[353326197,1739766643955,-500.0,0.00013698,2]
[353326199,1739766643965,-501.26042803,0.00013698,2]
[353326201,1739766643975,-500.0,0.00013698,2]
[353326203,1739766643984,-505.11668786,0.00013698,2]
[353326205,1739766643994,-500.0,0.00013698,2]
[353326206,1739766644004,-500.0,0.00013698,2]
[353326208,1739766644014,-500.0,0.00013698,2]
[353326210,1739766644023,-500.0,0.00013698,2]
[353326212,1739766644032,-500.0,0.00013698,2]
[353326214,1739766644042,-500.0,0.00013698,2]
[353326216,1739766644051,-500.0,0.00013698,2]
[353326218,1739766644060,-500.0,0.00013698,2]
[353326220,1739766644070,-500.0,0.00013698,2]
[353326222,1739766644079,-500.0,0.00013698,2]